bitfinex/quotes_BTCUSD_20250105
["timestamp","ask_amount","ask_price","bid_price","bid_amount"]
[1736055748497,0.0794,98416.0,98414.0,0.11975038]
[1736055748837,0.0794854,98416.0,98414.0,0.11975038]
[1736055749924,0.0814854,98416.0,98414.0,0.11975038]
[1736055750400,0.0804854,98416.0,98414.0,0.11975038]
[1736055751534,0.0784854,98416.0,98414.0,0.11975038]
[1736055751739,0.0794854,98416.0,98414.0,0.11975038]
[1736055753284,0.01905925,98415.0,98414.0,0.11975038]
[1736055755041,0.02005925,98415.0,98414.0,0.11975038]
[1736055755765,0.01905925,98415.0,98414.0,0.11975038]
[1736055756140,0.02005925,98415.0,98414.0,0.11975038]
[1736055756416,0.01905925,98415.0,98414.0,0.11975038]
[1736055758293,0.02005925,98415.0,98414.0,0.11975038]
[1736055758507,0.01905925,98415.0,98414.0,0.11975038]
[1736055758915,0.02105925,98415.0,98414.0,0.11975038]
[1736055759505,0.02305925,98415.0,98414.0,0.11975038]
[1736055759886,0.01905925,98415.0,98414.0,0.11975038]
[1736055760093,0.02105925,98415.0,98414.0,0.11975038]
[1736055760317,0.02205925,98415.0,98414.0,0.11975038]
[1736055760704,0.02105925,98415.0,98414.0,0.11975038]
[1736055761327,0.01905925,98415.0,98414.0,0.11992118]
[1736055761784,0.02105925,98415.0,98414.0,0.11992118]
[1736055762300,0.02205925,98415.0,98414.0,0.11992118]
[1736055762486,0.003,98415.0,98414.0,0.11992118]
[1736055762695,8.54e-05,98416.0,98414.0,0.11992118]
[1736055762867,0.02005917,98415.0,98414.0,0.11992118]
[1736055763077,0.02205917,98415.0,98414.0,0.11992118]
[1736055763659,0.02105917,98415.0,98414.0,0.11992118]
[1736055764842,0.01905917,98415.0,98414.0,0.11992118]
[1736055765052,0.02005917,98415.0,98414.0,0.11992118]
[1736055766022,0.02105917,98415.0,98414.0,0.11992118]
[1736055766460,0.02005917,98415.0,98414.0,0.11992118]
[1736055766890,0.02205917,98415.0,98414.0,0.11992118]
[1736055771178,0.02005917,98415.0,98414.0,0.11992118]
[1736055771695,0.02105917,98415.0,98414.0,0.11992118]
[1736055772023,0.02205917,98415.0,98414.0,0.61992118]
[1736055772226,0.02105917,98415.0,98414.0,0.61992118]
[1736055778300,0.002,98415.0,98414.0,0.61992118]
[1736055778593,0.02105693,98415.0,98414.0,0.61992118]
[1736055785705,0.02105693,98415.0,98414.0,0.69542118]
[1736055786078,0.002,98415.0,98414.0,0.69542118]
[1736055788751,0.002,98415.0,98414.0,0.71601371]
[1736055794392,8.54e-05,98416.0,98414.0,0.71601371]
[1736055794541,8.54e-05,98416.0,98415.0,0.204237]
[1736055794745,8.54e-05,98416.0,98415.0,0.10500232]
[1736055794950,8.54e-05,98416.0,98415.0,0.12076381]
[1736055795791,0.0010854,98416.0,98415.0,0.12076381]
[1736055796244,0.02013048,98416.0,98415.0,0.12076381]
[1736055796447,0.02013048,98416.0,98415.0,0.11974781]
[1736055797058,0.01913048,98416.0,98415.0,0.11974781]
[1736055797409,0.02013048,98416.0,98415.0,0.11974781]
[1736055801676,0.01913048,98416.0,98415.0,0.11974781]
[1736055802094,0.01913048,98416.0,98415.0,0.61974781]
[1736055802450,0.02013048,98416.0,98415.0,0.61974781]
[1736055803290,0.01913048,98416.0,98415.0,0.61974781]
[1736055803506,0.02113048,98416.0,98415.0,0.61974781]
[1736055809267,0.02113048,98416.0,98415.0,0.61991861]
[1736055821720,0.02121588,98416.0,98415.0,0.61991861]
[1736055832641,0.0030854,98416.0,98415.0,0.61991861]
[1736055833752,0.02214336,98416.0,98415.0,0.61991861]
[1736055835431,0.0030854,98416.0,98415.0,0.61991861]
[1736055838549,0.02214304,98416.0,98415.0,0.61991861]
[1736055841475,0.0030854,98416.0,98415.0,0.61991861]
[1736055842549,0.02214349,98416.0,98415.0,0.61991861]
[1736055844459,0.0030854,98416.0,98415.0,0.61991861]
[1736055844745,0.09456558,98416.0,98415.0,0.61991861]
[1736055847061,0.0030854,98416.0,98415.0,0.61991861]
[1736055849986,0.09456558,98416.0,98415.0,0.61991861]
[1736055851624,0.0030854,98416.0,98415.0,0.61991861]
[1736055860208,0.02214296,98416.0,98415.0,0.61991861]
[1736055863060,0.02114296,98416.0,98415.0,0.61991861]
[1736055868085,0.11262314,98416.0,98415.0,0.61991861]
[1736055869233,0.02114296,98416.0,98415.0,0.61991861]
[1736055869588,0.0020854,98416.0,98415.0,0.61991861]
[1736055875231,0.09355388,98416.0,98415.0,0.61991861]
[1736055876576,0.0020854,98416.0,98415.0,0.61991861]
[1736055878450,0.0020854,98416.0,98415.0,0.61491861]
[1736055878877,0.0799854,98416.0,98415.0,0.51593229]
[1736055879083,0.1269854,98416.0,98415.0,0.51593229]
[1736055879286,0.2184524,98416.0,98415.0,0.51593229]
[1736055879892,0.2164524,98416.0,98415.0,0.51593229]
[1736055880388,0.2164524,98416.0,98415.0,0.52193229]
[1736055880564,0.46261093,98416.0,98415.0,0.02193229]
[1736055880767,0.46261093,98416.0,98415.0,0.01993229]
[1736055881071,0.46261093,98416.0,98415.0,0.0041708]
[1736055881508,0.46261093,98416.0,98415.0,0.0051708]
[1736055881685,0.46261093,98416.0,98415.0,0.0011708]
[1736055882036,0.46261093,98416.0,98415.0,0.0031708]
[1736055882248,0.46261093,98416.0,98415.0,0.0011708]
[1736055882661,0.46261093,98416.0,98415.0,0.0001708]
[1736055883093,0.46261093,98416.0,98415.0,0.0011708]
[1736055883499,0.46261093,98416.0,98415.0,0.0001708]
[1736055885630,0.46361093,98416.0,98415.0,0.0001708]
[1736055885925,0.46261093,98416.0,98415.0,0.0001708]
[1736055886047,0.46361093,98416.0,98415.0,0.0001708]
[1736055886274,0.46261093,98416.0,98415.0,0.0001708]
[1736055886680,0.46361093,98416.0,98415.0,0.0001708]
[1736055887930,0.46261093,98416.0,98415.0,0.0001708]
[1736055888268,0.46361093,98416.0,98415.0,0.0001708]
[1736055889563,0.46261093,98416.0,98415.0,0.0001708]
[1736055889779,0.46361093,98416.0,98415.0,0.0001708]
[1736055891275,0.46261093,98416.0,98415.0,0.0001708]
[1736055891448,0.46361093,98416.0,98415.0,0.0001708]
[1736055891861,0.41661093,98416.0,98415.0,0.0001708]
[1736055892366,0.41561093,98416.0,98415.0,0.0001708]
[1736055892549,0.41661093,98416.0,98415.0,0.0001708]
[1736055894376,0.41561093,98416.0,98415.0,0.0001708]
[1736055894582,0.41661093,98416.0,98415.0,0.0001708]
[1736055894799,0.6448641,98416.0,98415.0,0.0001708]
[1736055896211,0.41661093,98416.0,98415.0,0.0001708]
[1736055898371,0.41561093,98416.0,98415.0,0.0001708]
[1736055898502,0.6438641,98416.0,98415.0,0.0001708]
[1736055898702,0.6448641,98416.0,98415.0,0.0001708]
[1736055899722,0.61191938,98416.0,98415.0,0.0001708]
[1736055899907,0.38366621,98416.0,98415.0,0.0001708]
[1736055906377,0.46466621,98416.0,98415.0,0.0001708]
[1736055907725,0.61366621,98416.0,98415.0,0.0011708]
[1736055907930,0.61366621,98416.0,98415.0,0.0021708]
[1736055908347,0.61366621,98416.0,98415.0,0.0001708]
[1736055908558,0.61366621,98416.0,98415.0,0.0011708]
[1736055908765,0.61366621,98416.0,98415.0,0.0001708]
[1736055908940,0.61366621,98416.0,98415.0,0.0011708]
[1736055910232,0.61366621,98416.0,98415.0,0.0001708]
[1736055911495,0.61466621,98416.0,98415.0,0.0001708]
[1736055911870,0.61366621,98416.0,98415.0,0.0001708]
[1736055912064,0.61466621,98416.0,98415.0,0.0001708]
[1736055912466,0.61366621,98416.0,98415.0,0.0001708]
[1736055912722,0.75966621,98416.0,98415.0,0.0001708]
[1736055912928,0.65966621,98416.0,98415.0,0.0001708]
[1736055913076,0.75966621,98416.0,98415.0,0.0001708]
[1736055913603,0.79140324,98416.0,98415.0,0.0001708]
[1736055914004,0.25,98415.0,98403.0,0.0001708]
[1736055914159,0.203243,98404.0,98403.0,0.0001708]
[1736055915250,0.203243,98404.0,98403.0,0.0031708]
[1736055915667,0.203243,98404.0,98403.0,0.0001708]
[1736055916224,0.54086853,98404.0,98403.0,0.0001708]
[1736055916417,0.54086853,98404.0,98403.0,0.0041708]
[1736055917863,0.54086853,98404.0,98403.0,0.0021708]
[1736055918492,0.54086853,98404.0,98403.0,0.0011708]
[1736055918738,0.72345188,98404.0,98403.0,0.0031708]
[1736055918999,0.72345188,98404.0,98403.0,0.0011708]
[1736055919181,0.72345188,98404.0,98403.0,0.0001708]
[1736055919391,0.72345188,98404.0,98403.0,0.0021708]
[1736055919576,0.54086853,98404.0,98403.0,0.0001708]
[1736055920653,0.54086853,98404.0,98403.0,0.0011708]
[1736055920849,0.76909391,98404.0,98403.0,0.0011708]
[1736055921058,0.76909391,98404.0,98403.0,0.0001708]
[1736055921443,0.76909391,98404.0,98403.0,0.0011708]
[1736055922064,0.76909391,98404.0,98403.0,0.0031708]
[1736055922296,0.76909391,98404.0,98403.0,0.0011708]
[1736055922705,0.76909391,98404.0,98403.0,0.0021708]
[1736055923342,0.54086853,98404.0,98403.0,0.0021708]
[1736055923745,0.54086853,98404.0,98403.0,0.0011708]
[1736055924569,0.53986853,98404.0,98403.0,0.0011708]
[1736055924775,0.53986853,98404.0,98403.0,0.0001708]
[1736055924919,0.76809391,98404.0,98403.0,0.0011708]
[1736055925332,0.76809391,98404.0,98403.0,0.0001708]
[1736055925563,0.76809391,98404.0,98403.0,0.0011708]
[1736055925922,0.76809391,98404.0,98403.0,0.0001708]
[1736055926121,0.53986853,98404.0,98403.0,0.0011708]
[1736055926424,0.53986853,98404.0,98403.0,0.0001708]
[1736055927174,0.76809391,98404.0,98403.0,0.0001708]
[1736055928085,0.76809391,98404.0,98403.0,0.0011708]
[1736055928507,0.76809391,98404.0,98403.0,0.0021708]
[1736055928508,0.53986853,98404.0,98403.0,0.0021708]
[1736055928890,0.53986853,98404.0,98403.0,0.0001708]
[1736055929098,0.53986853,98404.0,98403.0,0.0011708]
[1736055929504,0.76809391,98404.0,98403.0,0.0001708]
[1736055929747,0.76809391,98404.0,98403.0,0.0011708]
[1736055931688,0.76809391,98404.0,98403.0,0.0001708]
[1736055931891,0.76809391,98404.0,98403.0,0.0011708]
[1736055932146,0.76809391,98404.0,98403.0,0.0001708]
[1736055932591,0.76809391,98404.0,98403.0,0.0011708]
[1736055933004,0.76809391,98404.0,98403.0,0.0001708]
[1736055933211,0.76809391,98404.0,98403.0,0.0011708]
[1736055933588,0.76809391,98404.0,98403.0,0.0001708]
[1736055933589,0.53986853,98404.0,98403.0,0.0001708]
[1736055934973,0.202243,98404.0,98403.0,0.0011708]
[1736055935354,0.202243,98404.0,98403.0,0.0001708]
[1736055935605,0.202243,98404.0,98403.0,0.0011708]
[1736055936017,0.53986853,98404.0,98403.0,0.0011708]
[1736055937994,0.53995393,98404.0,98403.0,0.0011708]
[1736055938880,0.76855393,98404.0,98403.0,0.0011708]
[1736055939081,0.81355393,98404.0,98403.0,0.0011708]
[1736055939831,0.81355393,98404.0,98403.0,0.0001708]
[1736055940265,0.81555393,98404.0,98403.0,0.0001708]
[1736055941386,1.01954025,98404.0,98403.0,0.0001708]
[1736055941889,0.1,98401.0,98377.0,0.0831]
[1736055942091,0.3286,98401.0,98374.0,0.0101352]
[1736055943483,0.3296,98401.0,98374.0,0.0101352]
[1736055943808,0.66622553,98401.0,98374.0,0.0101352]
[1736055943967,0.66722553,98401.0,98374.0,0.0101352]
[1736055946318,0.66622553,98401.0,98374.0,0.0101352]
[1736055946785,0.66722553,98401.0,98374.0,0.0101352]
[1736055949011,0.67756628,98401.0,98374.0,0.0101352]
[1736055952815,0.95137358,98401.0,98374.0,0.0101352]
[1736055953532,0.95137358,98401.0,98381.0,0.0827]
[1736055954393,0.95137358,98401.0,98375.0,0.0827]
[1736055957481,0.67756628,98401.0,98375.0,0.0827]
[1736055957789,0.15,98400.0,98375.0,0.0827]
[1736055958028,0.203278,98388.0,98375.0,0.0827]
[1736055959487,0.09127016,98383.0,98375.0,0.0827]
[1736055959730,0.09127016,98383.0,98379.0,0.0040855]
[1736055960700,0.09127016,98383.0,98379.0,8.55e-05]
[1736055960932,0.09136048,98383.0,98379.0,0.0020855]
[1736055961653,9.032e-05,98383.0,98379.0,8.55e-05]
[1736055962145,0.00109032,98383.0,98379.0,8.55e-05]
[1736055966236,9.032e-05,98383.0,98379.0,8.55e-05]
[1736055966588,0.00209032,98383.0,98379.0,8.55e-05]
[1736055971544,9.032e-05,98383.0,98379.0,8.55e-05]
[1736055971871,0.00109032,98383.0,98379.0,8.55e-05]
[1736055972458,0.09136048,98383.0,98379.0,8.55e-05]
[1736055972842,0.09336048,98383.0,98379.0,8.55e-05]
[1736055974445,0.09136048,98383.0,98379.0,8.55e-05]
[1736055974940,0.09236048,98383.0,98379.0,8.55e-05]
[1736055975587,0.09136048,98383.0,98379.0,8.55e-05]
[1736055976002,0.09336048,98383.0,98379.0,8.55e-05]
[1736055976932,0.09127016,98382.0,98379.0,8.55e-05]
[1736055978449,0.09227016,98382.0,98379.0,8.55e-05]
[1736055979115,0.09127016,98381.0,98379.0,8.55e-05]
[1736055980419,0.09127016,98380.0,98379.0,8.55e-05]
[1736055981683,0.001,98380.0,98379.0,8.55e-05]
[1736055984506,0.33820945,98380.0,98379.0,8.55e-05]
[1736055985942,0.52074978,98380.0,98379.0,8.55e-05]
[1736055986271,0.51974978,98380.0,98379.0,8.55e-05]
[1736055987223,0.33720945,98380.0,98379.0,8.55e-05]
[1736055995899,0.56538486,98380.0,98379.0,8.55e-05]
[1736055996527,0.56555586,98380.0,98379.0,8.55e-05]
[1736056011201,0.56655586,98380.0,98379.0,8.55e-05]
[1736056011654,0.56955586,98380.0,98379.0,8.55e-05]
[1736056011810,0.34038045,98380.0,98379.0,8.55e-05]
[1736056013497,0.33738045,98380.0,98379.0,8.55e-05]
[1736056013880,0.34238045,98380.0,98379.0,8.55e-05]
[1736056047951,0.34138045,98380.0,98379.0,8.55e-05]
[1736056075864,0.61519095,98380.0,98379.0,8.55e-05]
[1736056077226,0.61119095,98380.0,98379.0,8.55e-05]
[1736056077741,0.61119095,98380.0,98379.0,0.0040855]
[1736056077885,0.62133235,98380.0,98379.0,0.0040855]
[1736056078097,0.34752185,98380.0,98379.0,0.0040855]
[1736056078503,0.34652185,98380.0,98379.0,0.0040855]
[1736056078883,0.34652185,98380.0,98379.0,0.0060855]
[1736056084713,0.33638045,98380.0,98379.0,0.0060855]
[1736056096219,0.61065475,98380.0,98379.0,0.0060855]
[1736056097253,0.33638045,98380.0,98379.0,0.0060855]
[1736056102911,0.61065475,98380.0,98379.0,0.0060855]
[1736056105686,0.33638045,98380.0,98379.0,0.0060855]
[1736056109991,0.33538045,98380.0,98379.0,0.0060855]
[1736056120336,0.33538045,98380.0,98379.0,0.0020855]
[1736056120728,0.33538045,98380.0,98379.0,0.0050855]
[1736056120925,0.33538045,98380.0,98379.0,0.0020855]
[1736056121134,0.33538045,98380.0,98379.0,8.55e-05]
[1736056121500,0.33538045,98380.0,98379.0,0.0010855]
[1736056121960,0.33538045,98380.0,98379.0,8.55e-05]
[1736056122366,0.33538045,98380.0,98379.0,0.0030855]
[1736056123015,0.34573082,98380.0,98379.0,0.0030855]
[1736056124769,0.34573082,98380.0,98379.0,0.0020855]
[1736056125130,0.34573082,98380.0,98379.0,0.0030855]
[1736056125480,0.34573082,98380.0,98379.0,0.0010855]
[1736056125723,0.34573082,98380.0,98379.0,0.0030855]
[1736056126129,0.34573082,98380.0,98379.0,0.0010855]
[1736056126342,0.34573082,98380.0,98379.0,0.0020855]
[1736056127667,0.34573082,98380.0,98379.0,0.0030855]
[1736056129310,0.59573082,98380.0,98379.0,0.0030855]
[1736056129729,0.70498361,98380.0,98379.0,0.0030855]
[1736056130786,0.70498361,98380.0,98379.0,0.0020855]
[1736056131227,0.70498361,98380.0,98379.0,0.0030855]
[1736056132140,0.70498361,98380.0,98379.0,0.0010855]
[1736056132351,0.203299,98377.0,98374.0,0.00017847]
[1736056134543,0.203303,98375.0,98374.0,0.00017847]
[1736056135750,0.53851245,98375.0,98374.0,0.00117847]
[1736056139198,0.557551,98375.0,98374.0,0.00117847]
[1736056150778,0.807551,98375.0,98374.0,0.00117847]
[1736056151538,0.8392786,98375.0,98374.0,0.00017847]
[1736056151913,0.8412786,98375.0,98374.0,0.00017847]
[1736056152104,0.807551,98375.0,98374.0,0.00017847]
[1736056152422,0.82815322,98375.0,98374.0,0.00017847]
[1736056152621,0.809551,98375.0,98374.0,0.00017847]
[1736056152826,0.15,98374.0,98361.0,0.0002708]
[1736056152941,0.203328,98363.0,98361.0,0.0002708]
[1736056153362,0.22236655,98363.0,98361.0,0.0002708]
[1736056154164,0.203328,98363.0,98361.0,0.0002708]
[1736056154964,0.53853745,98363.0,98361.0,0.0002708]
[1736056155171,0.53853745,98363.0,98362.0,0.0030854]
[1736056155590,0.53853745,98363.0,98362.0,0.0040854]
[1736056156198,0.53853745,98363.0,98362.0,0.0030854]
[1736056156404,0.53853745,98363.0,98362.0,8.54e-05]
[1736056156614,0.53853745,98363.0,98362.0,0.0010854]
[1736056157434,0.76693886,98363.0,98362.0,0.0010854]
[1736056157610,0.76693886,98363.0,98362.0,0.0040854]
[1736056158352,0.76693886,98363.0,98362.0,0.0030854]
[1736056158554,0.76693886,98363.0,98362.0,8.54e-05]
[1736056158855,0.53853745,98363.0,98362.0,0.0040854]
[1736056159839,0.203328,98363.0,98362.0,0.0040854]
[1736056160671,0.203328,98363.0,98362.0,0.0859854]
[1736056160884,0.53853745,98363.0,98362.0,0.0859854]
[1736056161118,0.53853745,98363.0,98362.0,0.0819854]
[1736056161292,0.53853745,98363.0,98362.0,0.0829854]
[1736056162682,0.53853745,98363.0,98362.0,0.0819854]
[1736056162903,0.53853745,98363.0,98362.0,0.0829854]
[1736056164038,0.53853745,98363.0,98362.0,0.0849854]
[1736056164333,0.53853745,98363.0,98362.0,0.0030854]
[1736056164543,0.53853745,98363.0,98362.0,0.0050854]
[1736056164771,0.53853745,98363.0,98362.0,0.0040854]
[1736056165098,0.53853745,98363.0,98362.0,0.0050854]
[1736056166459,0.53853745,98363.0,98362.0,0.0040854]
[1736056166961,0.53853745,98363.0,98362.0,8.54e-05]
[1736056167326,0.53853745,98363.0,98362.0,0.0020854]
[1736056167687,0.53853745,98363.0,98362.0,8.54e-05]
[1736056168093,0.53853745,98363.0,98362.0,0.0030854]
[1736056168564,0.53853745,98363.0,98362.0,0.0020854]
[1736056169015,0.53853745,98363.0,98362.0,0.0030854]
[1736056171807,0.53753745,98363.0,98362.0,0.0030854]
[1736056173524,0.53753745,98363.0,98362.0,0.0010854]
[1736056174277,0.53753745,98363.0,98362.0,8.54e-05]
[1736056176881,0.53753745,98363.0,98362.0,0.0010854]
[1736056177540,0.53753745,98363.0,98362.0,8.54e-05]
[1736056179139,0.81173567,98363.0,98362.0,8.54e-05]
[1736056181153,0.53753745,98363.0,98362.0,8.54e-05]
[1736056182903,0.53770845,98363.0,98362.0,8.54e-05]
[1736056183887,0.54070845,98363.0,98362.0,8.54e-05]
[1736056184088,0.53870845,98363.0,98362.0,8.54e-05]
[1736056184292,0.53970845,98363.0,98362.0,8.54e-05]
[1736056184728,0.53870845,98363.0,98362.0,8.54e-05]
[1736056185334,0.81184246,98363.0,98362.0,8.54e-05]
[1736056185681,0.81284246,98363.0,98362.0,8.54e-05]
[1736056186305,0.8318832,98363.0,98362.0,8.54e-05]
[1736056186483,1.0640832,98363.0,98362.0,8.54e-05]
[1736056187802,1.0650832,98363.0,98362.0,8.54e-05]
[1736056188386,1.0640832,98363.0,98362.0,8.54e-05]
[1736056188636,1.0650832,98363.0,98362.0,8.54e-05]
[1736056189040,0.79094919,98363.0,98362.0,8.54e-05]
[1736056189333,0.203332,98361.0,98359.0,0.00010159]
[1736056189974,0.01904074,98360.0,98359.0,0.00010159]
[1736056190392,0.203332,98361.0,98359.0,0.00010159]
[1736056190755,0.01903447,98360.0,98359.0,0.00010159]
[1736056190957,0.35424392,98360.0,98359.0,0.00010159]
[1736056193454,0.35524392,98360.0,98359.0,0.00010159]
[1736056199769,0.70923024,98360.0,98359.0,0.00010159]
[1736056199967,0.81834117,98360.0,98359.0,0.00010159]
[1736056201330,1.59869392,98360.0,98359.0,0.00010159]
[1736056202546,1.60545392,98360.0,98359.0,0.00010159]
[1736056202762,1.60445392,98360.0,98359.0,0.00010159]
[1736056203058,1.60545392,98360.0,98359.0,0.00010159]
[1736056203260,1.2968808,98360.0,98359.0,0.00010159]
[1736056204830,0.203353,98351.0,98350.0,0.25]
[1736056205251,0.203353,98351.0,98350.0,0.26644572]
[1736056205453,0.22238747,98351.0,98350.0,0.26644572]
[1736056206053,0.22238747,98351.0,98350.0,0.31603943]
[1736056206314,0.22238747,98351.0,98350.0,0.31903943]
[1736056206863,0.55759692,98351.0,98350.0,0.31903943]
[1736056207200,0.55759692,98351.0,98350.0,0.32003943]
[1736056209600,0.72118074,98351.0,98350.0,0.32003943]
[1736056210788,0.203353,98351.0,98350.0,0.32003943]
[1736056212892,0.54042963,98351.0,98350.0,0.32003943]
[1736056215201,0.72304792,98351.0,98350.0,0.32003943]
[1736056215664,0.51969492,98351.0,98350.0,0.32003943]
[1736056217960,0.18261829,98351.0,98350.0,0.32003943]
[1736056218983,0.18261829,98351.0,98350.0,0.32012483]
[1736056219187,0.203353,98351.0,98350.0,0.32012483]
[1736056220077,0.54042963,98351.0,98350.0,0.32012483]
[1736056229593,0.54042963,98351.0,98350.0,0.27102483]
[1736056231605,0.55946741,98351.0,98350.0,0.27102483]
[1736056233069,0.55846741,98351.0,98350.0,0.27102483]
[1736056240209,0.55846741,98351.0,98350.0,0.25457911]
[1736056240442,0.55846741,98351.0,98350.0,0.27407231]
[1736056245584,0.53942963,98351.0,98350.0,0.27407231]
[1736056245786,0.55847812,98351.0,98350.0,0.27407231]
[1736056249816,0.55847812,98351.0,98350.0,0.02407231]
[1736056250013,0.55847812,98351.0,98350.0,0.00457911]
[1736056254602,0.35612512,98351.0,98350.0,0.00457911]
[1736056255140,0.35612512,98351.0,98350.0,0.13417911]
[1736056255480,0.35612512,98351.0,98350.0,0.15367434]
[1736056255889,0.35612512,98351.0,98350.0,0.25766066]
[1736056256697,0.01921929,98351.0,98350.0,0.25766066]
[1736056257120,0.01921929,98351.0,98350.0,0.23816543]
[1736056257569,0.01921929,98351.0,98350.0,0.25766066]
[1736056258132,0.0001708,98351.0,98350.0,0.25766066]
[1736056259296,0.09157232,98351.0,98350.0,0.25766066]
[1736056259452,0.09157232,98351.0,98350.0,0.23816543]
[1736056259682,0.09157232,98351.0,98350.0,0.257656]
[1736056260727,0.0001708,98351.0,98350.0,0.257656]
[1736056262023,0.0001708,98351.0,98350.0,0.253656]
[1736056262440,0.0001708,98351.0,98350.0,0.257656]
[1736056263091,0.0001708,98351.0,98350.0,0.253656]
[1736056263274,0.0001708,98351.0,98350.0,0.255656]
[1736056263498,0.0001708,98351.0,98350.0,0.260656]
[1736056263499,0.0011708,98351.0,98350.0,0.260656]
[1736056270578,0.0011708,98351.0,98350.0,0.131056]
[1736056294656,0.0001708,98351.0,98350.0,0.131056]
[1736056295095,0.0001708,98351.0,98350.0,0.11156543]
[1736056295252,0.01923081,98351.0,98350.0,0.11156543]
[1736056295933,0.11063233,98351.0,98350.0,0.11156543]
[1736056297188,0.15636281,98351.0,98350.0,0.11156543]
[1736056298111,0.01923081,98351.0,98350.0,0.11156543]
[1736056300531,0.53945876,98351.0,98350.0,0.11156543]
[1736056300955,0.53945876,98351.0,98350.0,0.19446543]
[1736056301366,0.53945876,98351.0,98350.0,0.21445375]
[1736056301797,0.35661609,98351.0,98350.0,0.21445375]
[1736056302143,0.35644529,98351.0,98350.0,0.20945375]
[1736056302552,0.35844529,98351.0,98350.0,0.20945375]
[1736056302770,0.35644529,98351.0,98350.0,0.20945375]
[1736056302973,0.35644529,98351.0,98350.0,0.20745375]
[1736056303201,0.02106001,98351.0,98350.0,0.20745375]
[1736056303772,0.02023081,98351.0,98350.0,0.20745375]
[1736056303930,0.01923081,98351.0,98350.0,0.20745375]
[1736056305448,0.02023081,98351.0,98350.0,0.20745375]
[1736056305646,0.01923081,98351.0,98350.0,0.20745375]
[1736056308759,0.02023081,98351.0,98350.0,0.20745375]
[1736056310003,0.01923081,98351.0,98350.0,0.20745375]
[1736056310528,0.0011708,98351.0,98350.0,0.20745375]
[1736056310742,0.02021861,98351.0,98350.0,0.20745375]
[1736056311553,0.01921861,98351.0,98350.0,0.20745375]
[1736056311965,0.02021861,98351.0,98350.0,0.20745375]
[1736056312165,0.01921861,98351.0,98350.0,0.20745375]
[1736056312466,0.02021861,98351.0,98350.0,0.20745375]
[1736056312855,0.01921861,98351.0,98350.0,0.20745375]
[1736056312997,0.02021861,98351.0,98350.0,0.20745375]
[1736056313842,0.02021861,98351.0,98350.0,0.12455375]
[1736056314793,0.02121861,98351.0,98350.0,0.12455375]
[1736056315025,0.01921861,98351.0,98350.0,0.12455375]
[1736056315451,0.02021861,98351.0,98350.0,0.12455375]
[1736056316062,0.02021861,98351.0,98350.0,0.02056743]
[1736056316063,0.02221861,98351.0,98350.0,0.02056743]
[1736056316907,0.02221861,98351.0,98350.0,0.00057911]
[1736056317327,0.02321861,98351.0,98350.0,0.00057911]
[1736056322856,0.36069989,98351.0,98350.0,0.00057911]
[1736056324549,0.58925323,98351.0,98350.0,0.00057911]
[1736056326223,0.36069989,98351.0,98350.0,0.00057911]
[1736056327340,0.02321861,98351.0,98350.0,0.00057911]
[1736056328087,0.0041708,98351.0,98350.0,0.00057911]
[1736056328290,0.02319993,98351.0,98350.0,0.00057911]
[1736056328681,0.36068121,98351.0,98350.0,0.00057911]
[1736056329952,0.66861592,98351.0,98350.0,0.00057911]
[1736056332177,0.44018121,98351.0,98350.0,0.00057911]
[1736056335040,0.66861592,98351.0,98350.0,0.00057911]
[1736056336203,0.10269993,98351.0,98350.0,0.00057911]
[1736056337791,0.09969993,98351.0,98350.0,0.00057911]
[1736056337987,0.09869993,98351.0,98350.0,0.00057911]
[1736056338243,0.09869993,98351.0,98350.0,0.00257911]
[1736056338838,0.43586513,98351.0,98350.0,0.00257911]
[1736056339210,0.43586513,98351.0,98350.0,0.00357911]
[1736056340234,0.66417172,98351.0,98350.0,0.00357911]
[1736056342337,0.6744108,98351.0,98350.0,0.00357911]
[1736056342946,0.66417172,98351.0,98350.0,0.00357911]
[1736056343530,0.58467172,98351.0,98350.0,0.00357911]
[1736056345270,0.35636513,98351.0,98350.0,0.00357911]
[1736056346411,0.01919993,98351.0,98350.0,0.00357911]
[1736056353602,0.01919993,98351.0,98350.0,0.02373996]
[1736056353920,0.01919993,98351.0,98350.0,0.00357911]
[1736056354101,0.01919993,98351.0,98350.0,0.02373996]
[1736056355988,0.01819993,98351.0,98350.0,0.02373996]
[1736056361320,0.01837073,98351.0,98350.0,0.02373996]
[1736056365163,0.01837073,98351.0,98350.0,0.00357911]
[1736056368763,0.0001708,98351.0,98350.0,0.00357911]
[1736056371820,0.0001708,98351.0,98350.0,0.10756543]
[1736056372233,0.0001708,98351.0,98350.0,0.12772627]
[1736056372629,0.01921087,98351.0,98350.0,0.12772627]
[1736056374467,0.01921087,98351.0,98350.0,0.13813839]
[1736056377273,0.01921087,98351.0,98350.0,0.12772627]
[1736056379837,0.0001708,98351.0,98350.0,0.12772627]
[1736056380856,0.0192221,98351.0,98350.0,0.12772627]
[1736056387230,0.0192221,98351.0,98350.0,0.10756543]
[1736056389340,0.11054036,98351.0,98350.0,0.12772691]
[1736056390657,0.0192221,98351.0,98350.0,0.12772691]
[1736056392325,0.0192221,98351.0,98350.0,0.10756543]
[1736056393232,0.15619949,98351.0,98350.0,0.10756543]
[1736056393568,0.15619949,98351.0,98350.0,0.12772691]
[1736056394604,0.13714819,98351.0,98350.0,0.12772691]
[1736056396322,0.13714819,98351.0,98350.0,0.10756543]
[1736056399636,0.0001708,98351.0,98350.0,0.10756543]
[1736056402123,0.0001708,98351.0,98350.0,0.1277285]
[1736056409938,0.0001708,98351.0,98350.0,0.1507285]
[1736056410145,0.0001708,98351.0,98350.0,0.28104521]
[1736056410347,0.0001708,98351.0,98350.0,0.2800285]
[1736056411164,0.0001708,98351.0,98350.0,0.2790285]
[1736056411370,0.0001708,98351.0,98350.0,0.6290285]
[1736056411576,0.0001708,98351.0,98350.0,1.2326955]
[1736056411777,0.0001708,98351.0,98350.0,1.26383189]
[1736056411980,0.0001708,98351.0,98350.0,1.26183189]
[1736056412390,0.09145411,98359.0,98356.0,0.5023]
[1736056412609,0.09145411,98359.0,98356.0,0.60628632]
[1736056412842,0.09145411,98359.0,98356.0,0.62642677]
[1736056413022,0.000171,98363.0,98356.0,0.62642677]
[1736056413598,0.0011708,98357.0,98356.0,0.63342677]
[1736056414382,0.0011708,98357.0,98356.0,0.94259799]
[1736056415055,0.0011708,98357.0,98356.0,1.44259799]
[1736056415453,0.0011708,98357.0,98356.0,2.19173099]
[1736056415706,0.0011708,98357.0,98356.0,2.35094935]
[1736056416693,0.0011708,98357.0,98356.0,2.53342246]
[1736056417647,0.0001708,98357.0,98356.0,2.53342246]
[1736056417853,0.0001708,98357.0,98356.0,2.35094935]
[1736056418474,8e-07,98360.0,98359.0,0.5793]
[1736056418688,8e-07,98360.0,98359.0,0.70628632]
[1736056418893,8e-07,98360.0,98359.0,0.72642394]
[1736056419091,8e-07,98360.0,98359.0,0.73326394]
[1736056419527,8e-07,98360.0,98359.0,0.72642394]
[1736056419733,0.0010008,98360.0,98359.0,0.73926394]
[1736056419934,0.0010008,98360.0,98359.0,0.92685994]
[1736056420512,0.0010008,98360.0,98359.0,0.73926394]
[1736056420690,0.0010008,98360.0,98359.0,0.74226394]
[1736056424356,0.0010008,98360.0,98359.0,0.75232129]